fUSD/lending_fUSD_20260529
["ID","MTS","AMOUNT","RATE_DAILY","PERIOD"]
[423334424,1780062644000,-4101.394339,0.00021051,2]
[423334417,1780062644000,-899.662535,0.00021051,2]
[423334426,1780062644000,-500.0,0.00021051,2]
[423334429,1780062644000,-500.0,0.00021051,2]
[423334428,1780062644000,-500.0,0.00021051,2]
[423334430,1780062644000,-500.0,0.00021051,2]
[423334431,1780062644000,-500.0,0.00021051,2]
[423334427,1780062644000,-500.0,0.00021051,2]
[423334433,1780062644000,-500.0,0.00021051,2]
[423334432,1780062644000,-500.0,0.00021051,2]
[423334378,1780062644000,-150.0,0.00021041,4]
[423334404,1780062644000,-151.0,0.00021051,2]
[423334408,1780062644000,-667.030463,0.00021051,2]
[423334422,1780062644000,-4101.394339,0.00021051,2]
[423334401,1780062644000,-151.0,0.00021051,2]
[423334381,1780062644000,-180.38729844,0.00021041,4]
[423334405,1780062644000,-151.0,0.00021051,2]
[423334385,1780062644000,-247.554,0.00021041,2]
[423334382,1780062644000,-231.22233201,0.00021041,4]
[423334383,1780062644000,-283.70768102,0.00021041,4]
[423334386,1780062644000,-194.92,0.00021041,2]
[423334384,1780062644000,-269.36912467,0.00021041,4]
[423334388,1780062644000,-247.523,0.00021041,2]
[423334398,1780062644000,-151.0,0.00021051,2]
[423334399,1780062644000,-151.0,0.00021051,2]
[423334387,1780062644000,-250.0,0.00021041,2]
[423334394,1780062644000,-151.0,0.00021051,2]
[423334390,1780062644000,-151.0,0.00021041,2]
[423334389,1780062644000,-245.485,0.00021041,2]
[423334411,1780062644000,-923.097563,0.00021051,2]
[423334403,1780062644000,-151.0,0.00021051,2]
[423334409,1780062644000,-667.030463,0.00021051,2]
[423334402,1780062644000,-151.0,0.00021051,2]
[423334400,1780062644000,-151.0,0.00021051,2]
[423334397,1780062644000,-152.31861,0.00021051,2]
[423334395,1780062644000,-151.0,0.00021051,2]
[423334392,1780062644000,-151.0,0.00021051,2]
[423334393,1780062644000,-151.0,0.00021051,2]
[423334396,1780062644000,-151.0,0.00021051,2]
[423334391,1780062644000,-151.0,0.00021051,2]
[423334478,1780062645000,-500.0,0.00021051,2]
[423334474,1780062645000,-500.0,0.00021051,2]
[423334470,1780062645000,-500.0,0.00021051,2]
[423334472,1780062645000,-500.0,0.00021051,2]
[423334466,1780062645000,-500.0,0.00021051,2]
[423334464,1780062645000,-500.0,0.00021051,2]
[423334471,1780062645000,-500.0,0.00021051,2]
[423334467,1780062645000,-500.0,0.00021051,2]
[423334468,1780062645000,-500.0,0.00021051,2]
[423334469,1780062645000,-500.0,0.00021051,2]
[423334483,1780062645000,-537291.8783786,0.00021051,2]
[423334476,1780062645000,-500.0,0.00021051,2]
[423334473,1780062645000,-500.0,0.00021051,2]
[423334480,1780062645000,-500.0,0.00021051,2]
[423334494,1780062645000,-578.20924308,0.0002107,2]
[423334489,1780062645000,-279.9045709,0.0002107,2]
[423334479,1780062645000,-500.0,0.00021051,2]
[423334482,1780062645000,-500.0,0.00021051,2]
[423334490,1780062645000,-1000.0,0.0002107,2]
[423334488,1780062645000,-743.50770149,0.0002107,2]
[423334484,1780062645000,-162.5701798,0.00021051,2]
[423334485,1780062645000,-44184.6563085,0.00021051,2]
[423334487,1780062645000,-1000.0,0.0002107,2]
[423334493,1780062645000,-1000.0,0.0002107,2]
[423334491,1780062645000,-1000.0,0.0002107,2]
[423334495,1780062645000,-564.92594168,0.0002107,2]
[423334496,1780062645000,-209.40437684,0.0002107,2]
[423334477,1780062645000,-500.0,0.00021051,2]
[423334486,1780062645000,-151.0,0.0002107,2]
[423334465,1780062645000,-500.0,0.00021051,2]
[423334436,1780062645000,-500.0,0.00021051,2]
[423334463,1780062645000,-500.0,0.00021051,2]
[423334502,1780062645000,-721.12765534,0.0002107,2]
[423334435,1780062645000,-500.0,0.00021051,2]
[423334434,1780062645000,-500.0,0.00021051,2]
[423334437,1780062645000,-500.0,0.00021051,2]
[423334439,1780062645000,-500.0,0.00021051,2]
[423334450,1780062645000,-500.0,0.00021051,2]
[423334440,1780062645000,-500.0,0.00021051,2]
[423334438,1780062645000,-500.0,0.00021051,2]
[423334449,1780062645000,-500.0,0.00021051,2]
[423334441,1780062645000,-500.0,0.00021051,2]
[423334442,1780062645000,-500.0,0.00021051,2]
[423334443,1780062645000,-500.0,0.00021051,2]
[423334445,1780062645000,-500.0,0.00021051,2]
[423334444,1780062645000,-500.0,0.00021051,2]
[423334448,1780062645000,-500.0,0.00021051,2]
[423334446,1780062645000,-500.0,0.00021051,2]
[423334447,1780062645000,-500.0,0.00021051,2]
[423334451,1780062645000,-500.0,0.00021051,2]
[423334453,1780062645000,-500.0,0.00021051,2]
[423334454,1780062645000,-500.0,0.00021051,2]
[423334455,1780062645000,-500.0,0.00021051,2]
[423334461,1780062645000,-500.0,0.00021051,2]
[423334460,1780062645000,-500.0,0.00021051,2]
[423334452,1780062645000,-500.0,0.00021051,2]
[423334459,1780062645000,-500.0,0.00021051,2]
[423334457,1780062645000,-500.0,0.00021051,2]
[423334458,1780062645000,-151.0,0.00021051,2]
[423334462,1780062645000,-500.0,0.00021051,2]
[423334456,1780062645000,-500.0,0.00021051,2]
[423334475,1780062645000,-500.0,0.00021051,2]
[423334500,1780062645000,-151.0,0.0002107,2]
[423334481,1780062645000,-500.0,0.00021051,2]
[423334503,1780062645000,-152.0,0.0002107,2]
[423334533,1780062645000,-151.0,0.0002129,2]
[423334539,1780062645000,-151.0,0.00021345,2]
[423334535,1780062645000,-801.85129954,0.0002129,2]
[423334534,1780062645000,-801.85129954,0.0002129,2]
[423334537,1780062645000,-214.04860802,0.00021295,2]
[423334538,1780062645000,-2425.31,0.000213,7]
[423334536,1780062645000,-214.04860802,0.00021295,2]
[423334540,1780062645000,-831.51979762,0.00021345,2]
[423334541,1780062645000,-831.51979762,0.00021345,2]
[423334542,1780062645000,-5548.0,0.00021346,5]
[423334543,1780062645000,-6049.0,0.00021346,5]
[423334545,1780062645000,-1985.40365658,0.000214,2]
[423334546,1780062645000,-151.0,0.000214,2]
[423334551,1780062645000,-894.19061325,0.00021455,2]
[423334547,1780062645000,-210.00716001,0.000214,2]
[423334544,1780062645000,-10887.2002232,0.00021354,2]
[423334549,1780062645000,-222.0,0.00021423,2]
[423334548,1780062645000,-862.28603014,0.000214,2]
[423334550,1780062645000,-151.0,0.00021455,2]
[423334552,1780062645000,-171.734091,0.00021497,2]
[423334553,1780062645000,-300.0,0.00021499,2]
[423334555,1780062645000,-151.0,0.0002151,2]
[423334554,1780062645000,-58418.47841133,0.000215,2]
[423334557,1780062645000,-218.97758758,0.00021537,2]
[423334556,1780062645000,-927.27566594,0.0002151,2]
[423334559,1780062645000,-2319.72410669,0.00021537,2]
[423334561,1780062645000,-961.58486558,0.00021565,2]
[423334492,1780062645000,-174.61919141,0.0002107,2]
[423334560,1780062645000,-151.0,0.00021565,2]
[423334532,1780062645000,-1412.23292087,0.00021254,2]
[423334531,1780062645000,-773.24136889,0.00021235,2]
[423334558,1780062645000,-151.0,0.00021537,2]
[423334528,1780062645000,-1985.40365658,0.000212,2]
[423334522,1780062645000,-151.0,0.00021125,2]
[423334501,1780062645000,-209.40437684,0.0002107,2]
[423334499,1780062645000,-416.03518577,0.0002107,2]
[423334498,1780062645000,-209.40437684,0.0002107,2]
[423334504,1780062645000,-693.39197629,0.0002107,2]
[423334506,1780062645000,-693.39197629,0.0002107,2]
[423334507,1780062645000,-200.0,0.0002107,2]
[423334509,1780062645000,-209.40437684,0.0002107,2]
[423334516,1780062645000,-152.0,0.0002107,2]
[423334508,1780062645000,-200.0,0.0002107,2]
[423334511,1780062645000,-152.0,0.0002107,2]
[423334513,1780062645000,-152.0,0.0002107,2]
[423334515,1780062645000,-152.0,0.0002107,2]
[423334562,1780062645000,-150.30096206,0.0002161,2]
[423334514,1780062645000,-152.0,0.0002107,2]
[423334497,1780062645000,-693.39197629,0.0002107,2]
[423334517,1780062645000,-152.0,0.0002107,2]
[423334526,1780062645000,-745.65223615,0.0002118,2]
[423334524,1780062645000,-719.04747942,0.00021125,2]
[423334530,1780062645000,-773.24136889,0.00021235,2]
[423334519,1780062645000,-200.0,0.0002107,2]
[423334510,1780062645000,-152.0,0.0002107,2]
[423334523,1780062645000,-719.04747942,0.00021125,2]
[423334525,1780062645000,-151.0,0.0002118,2]
[423334529,1780062645000,-151.0,0.00021235,2]
[423334527,1780062645000,-745.65223615,0.0002118,2]
[423334520,1780062645000,-152.0,0.0002107,2]
[423334518,1780062645000,-152.0,0.0002107,2]
[423334505,1780062645000,-1428.38747117,0.0002107,2]
[423334512,1780062645000,-152.0,0.0002107,2]
[423334521,1780062645000,-1280.0,0.00021119,2]
[423334609,1780062646000,-151.0,0.00022085,2]
[423334608,1780062646000,-7047.06542725,0.00022054,2]
[423334600,1780062646000,-2554.0,0.00022,2]
[423334594,1780062646000,-1177.0,0.00022,2]
[423334605,1780062646000,-796.7,0.00022,2]
[423334604,1780062646000,-838.0,0.00022,2]
[423334603,1780062646000,-5486.0,0.00022,2]
[423334599,1780062646000,-340.0,0.00022,2]
[423334595,1780062646000,-1489.0,0.00022,2]
[423334597,1780062646000,-2729.0,0.00022,2]
[423334596,1780062646000,-731.0,0.00022,2]
[423334601,1780062646000,-417.0,0.00022,2]
[423334606,1780062646000,-246.49081947,0.00022025,2]
[423334613,1780062646000,-799.54513344,0.00022166,2]
[423334612,1780062646000,-315.0,0.000221,2]
[423334618,1780062646000,-225.18697532,0.00022166,2]
[423334611,1780062646000,-309.0,0.000221,2]
[423334617,1780062646000,-745.65223615,0.00022166,2]
[423334610,1780062646000,-2405.55389863,0.00022085,2]
[423334616,1780062646000,-225.18697532,0.00022166,2]
[423334614,1780062646000,-301.0006985,0.00022166,2]
[423334607,1780062646000,-196.41992391,0.00022039,2]
[423334630,1780062646000,-217.15233878,0.00022439,2]
[423334620,1780062646000,-200.0,0.00022166,2]
[423334619,1780062646000,-1536.04360648,0.00022166,2]
[423334622,1780062646000,-225.18697532,0.00022166,2]
[423334602,1780062646000,-912.0,0.00022,2]
[423334615,1780062646000,-187.78006524,0.00022166,2]
[423334598,1780062646000,-2763.0,0.00022,2]
[423334578,1780062646000,-997.16350561,0.0002162,2]
[423334593,1780062646000,-450.0,0.00022,2]
[423334567,1780062646000,-290.26104002,0.00021618,2]
[423334568,1780062646000,-181.08010149,0.00021618,2]
[423334565,1780062646000,-150.30096206,0.0002161,2]
[423334566,1780062646000,-771.01748644,0.00021618,2]
[423334563,1780062646000,-150.30096206,0.0002161,2]
[423334564,1780062646000,-150.30096206,0.0002161,2]
[423334570,1780062646000,-719.04747942,0.00021618,2]
[423334569,1780062646000,-217.15233878,0.00021618,2]
[423334580,1780062646000,-200.0,0.00021748,2]
[423334581,1780062646000,-7357.34,0.00021789,2]
[423334573,1780062646000,-1481.2378076,0.00021618,2]
[423334571,1780062646000,-453.99649548,0.00021618,2]
[423334572,1780062646000,-217.15233878,0.00021618,2]
[423334590,1780062646000,-592.24089798,0.00021918,2]
[423334575,1780062646000,-200.0,0.00021618,2]
[423334574,1780062646000,-200.0,0.00021618,2]
[423334576,1780062646000,-217.15233878,0.00021618,2]
[423334579,1780062646000,-1985.40365658,0.000217,2]
[423334582,1780062646000,-1985.40365658,0.000219,2]
[423334584,1780062646000,-5000.0,0.00021918,2]
[423334585,1780062646000,-674.088751,0.00021918,2]
[423334583,1780062646000,-979.73,0.000219,2]
[423334589,1780062646000,-745.62,0.00021918,2]
[423334592,1780062646000,-300.0,0.00022,10]
[423334587,1780062646000,-674.088751,0.00021918,2]
[423334588,1780062646000,-674.088751,0.00021918,2]
[423334586,1780062646000,-674.088751,0.00021918,2]
[423334591,1780062646000,-174.72474418,0.00021918,2]
[423334577,1780062646000,-151.0,0.0002162,2]
[423334623,1780062646000,-831.0,0.00022279,7]
[423334621,1780062646000,-200.0,0.00022166,2]
[423334625,1780062646000,-195.24744044,0.00022407,2]
[423334663,1780062646000,-500.0,0.00022862,7]
[423334665,1780062646000,-2082.0,0.00022971,2]
[423334673,1780062646000,-2500.0,0.00023,20]
[423334671,1780062646000,-2500.0,0.00023,20]
[423334678,1780062646000,-1489.0,0.00023,2]
[423334676,1780062646000,-1177.0,0.00023,2]
[423334682,1780062646000,-2729.0,0.00023,2]
[423334680,1780062646000,-731.0,0.00023,2]
[423334684,1780062646000,-2763.0,0.00023,2]
[423334686,1780062646000,-340.0,0.00023,2]
[423334697,1780062646000,-838.0,0.00023,2]
[423334700,1780062646000,-193.92258505,0.00023013,2]
[423334690,1780062646000,-417.0,0.00023,2]
[423334692,1780062646000,-912.0,0.00023,2]
[423334705,1780062646000,-3549.0,0.00023175,2]
[423334694,1780062646000,-5486.0,0.00023,2]
[423334703,1780062646000,-262.08624069,0.000231,2]
[423334688,1780062646000,-2554.0,0.00023,2]
[423334707,1780062646000,-1356.0,0.00023175,2]
[423334709,1780062646000,-928.0,0.00023175,2]
[423334712,1780062646000,-1272.0,0.00023175,2]
[423334711,1780062646000,-525.0,0.00023175,2]
[423334715,1780062646000,-150.0,0.00023175,2]
[423334716,1780062646000,-150.0,0.00023175,2]
[423334714,1780062646000,-1225.0,0.00023175,2]
[423334717,1780062646000,-151.0,0.00023181,2]
[423334629,1780062646000,-180.15560403,0.00022439,2]
[423334669,1780062646000,-1000.0,0.00023,20]
[423334667,1780062646000,-2500.0,0.00023,20]
[423334698,1780062646000,-140942.0,0.00023,2]
[423334658,1780062646000,-500.0,0.00022862,7]
[423334660,1780062646000,-500.0,0.00022862,7]
[423334624,1780062646000,-7567.4,0.00022353,2]
[423334627,1780062646000,-195.24744043,0.00022407,2]
[423334626,1780062646000,-195.24744043,0.00022407,2]
[423334631,1780062646000,-933.75,0.00022466,2]
[423334640,1780062646000,-9243.94,0.00022691,2]
[423334636,1780062646000,-760.91,0.00022691,2]
[423334637,1780062646000,-7390.55,0.00022691,2]
[423334633,1780062646000,-168.09,0.00022603,2]
[423334634,1780062646000,-151.0,0.00022633,2]
[423334642,1780062646000,-312.13772435,0.00022714,2]
[423334635,1780062646000,-2494.55939288,0.00022633,2]
[423334641,1780062646000,-829.12830338,0.00022714,2]
[423334639,1780062646000,-6120.17,0.00022691,2]
[423334628,1780062646000,-200.0,0.0002242,2]
[423334638,1780062646000,-1653.84,0.00022691,2]
[423334632,1780062646000,-1268.03,0.00022466,2]
[423334652,1780062646000,-592.24089798,0.00022831,2]
[423334649,1780062646000,-200.0,0.00022714,2]
[423334651,1780062646000,-223.666255,0.00022793,2]
[423334650,1780062646000,-233.5188934,0.00022714,2]
[423334648,1780062646000,-200.0,0.00022714,2]
[423334656,1780062646000,-500.0,0.00022862,7]
[423334647,1780062646000,-1592.87721992,0.00022714,2]
[423334645,1780062646000,-773.24136889,0.00022714,2]
[423334644,1780062646000,-233.5188934,0.00022714,2]
[423334643,1780062646000,-194.72792766,0.00022714,2]
[423334654,1780062646000,-243.86936213,0.00022859,2]
[423334646,1780062646000,-233.5188934,0.00022714,2]
[423334751,1780062647000,-747.80937859,0.00023809,2]
[423334752,1780062647000,-891.61887448,0.0002381,2]
[423334756,1780062647000,-251.11897888,0.0002381,2]
[423334760,1780062647000,-280.17462272,0.0002381,2]
[423334753,1780062647000,-335.66323249,0.0002381,2]
[423334759,1780062647000,-200.0,0.0002381,2]
[423334758,1780062647000,-200.0,0.0002381,2]
[423334761,1780062647000,-1094.0377033,0.00023839,2]
[423334757,1780062647000,-1712.93078311,0.0002381,2]
[423334755,1780062647000,-251.11897888,0.0002381,2]
[423334754,1780062647000,-209.40437684,0.0002381,2]
[423334762,1780062647000,-152.0,0.00023987,5]
[423334764,1780062647000,-3600.0,0.00024,2]
[423334772,1780062647000,-2729.0,0.00024,2]
[423334765,1780062647000,-161.0,0.00024,10]
[423334763,1780062647000,-249.17,0.00024,14]
[423334766,1780062647000,-215.5484138,0.00024,7]
[423334767,1780062647000,-27180.26776259,0.00024,2]
[423334771,1780062647000,-731.0,0.00024,2]
[423334773,1780062647000,-2763.0,0.00024,2]
[423334770,1780062647000,-1489.0,0.00024,2]
[423334769,1780062647000,-1177.0,0.00024,2]
[423334768,1780062647000,-500.0,0.00024,2]
[423334774,1780062647000,-340.0,0.00024,2]
[423334775,1780062647000,-2554.0,0.00024,2]
[423334776,1780062647000,-417.0,0.00024,2]
[423334748,1780062647000,-22207.83321406,0.00023788,2]
[423334778,1780062647000,-5486.0,0.00024,2]
[423334750,1780062647000,-599.60298507,0.00023809,2]
[423334722,1780062647000,-323.68682015,0.00023262,2]
[423334747,1780062647000,-905.6181438,0.00023788,2]
[423334724,1780062647000,-242.15909246,0.00023262,2]
[423334723,1780062647000,-201.93286098,0.00023262,2]
[423334720,1780062647000,-152.0,0.00023235,3]
[423334718,1780062647000,-2586.85809042,0.00023181,2]
[423334719,1780062647000,-200.0,0.00023214,2]
[423334721,1780062647000,-859.8060506,0.00023262,2]
[423334725,1780062647000,-275.92646079,0.00023262,2]
[423334729,1780062647000,-200.0,0.00023262,2]
[423334727,1780062647000,-1651.81367706,0.00023262,2]
[423334728,1780062647000,-200.0,0.00023262,2]
[423334726,1780062647000,-242.15909246,0.00023262,2]
[423334731,1780062647000,-979.73,0.000233,7]
[423334730,1780062647000,-242.15909246,0.00023262,2]
[423334749,1780062647000,-302.96099822,0.00023808,2]
[423334737,1780062647000,-2436.80901633,0.00023551,7]
[423334734,1780062647000,-2436.80901633,0.00023416,2]
[423334735,1780062647000,-2000.0,0.00023431,2]
[423334733,1780062647000,-2436.8090163,0.00023348,2]
[423334732,1780062647000,-2436.80901633,0.00023348,2]
[423334738,1780062647000,-7357.34,0.00023579,2]
[423334739,1780062647000,-152.0,0.00023611,4]
[423334740,1780062647000,-2436.80901633,0.00023619,7]
[423334741,1780062647000,-2436.80901633,0.00023687,7]
[423334743,1780062647000,-1950.30162292,0.0002372,2]
[423334742,1780062647000,-5531.0,0.000237,3]
[423334746,1780062647000,-592.24089798,0.00023744,2]
[423334744,1780062647000,-267.96428932,0.00023729,2]
[423334745,1780062647000,-2682.57183977,0.00023729,2]
[423334736,1780062647000,-2436.80901633,0.00023484,2]
[423334780,1780062647000,-200.0,0.00024007,2]
[423334795,1780062647000,-161.0,0.000245,15]
[423334777,1780062647000,-912.0,0.00024,2]
[423334816,1780062647000,-151.22495243,0.00024807,2]
[423334817,1780062647000,-280.84634022,0.00024807,2]
[423334812,1780062647000,-5000.0,0.00024736,2]
[423334821,1780062647000,-225.18697532,0.00024906,2]
[423334822,1780062647000,-270.0455652,0.00024906,2]
[423334814,1780062647000,-152.0,0.00024739,7]
[423334820,1780062647000,-958.81929743,0.00024906,2]
[423334819,1780062647000,-721.53,0.00024886,7]
[423334818,1780062647000,-2884.75459676,0.00024825,2]
[423334823,1780062647000,-170.73266429,0.00024906,2]
[423334824,1780062647000,-1842.0326633,0.00024906,2]
[423334834,1780062647000,-313.60822115,0.00025,2]
[423334836,1780062647000,-56288.56973458,0.00025,7]
[423334827,1780062647000,-796.7,0.00024946,7]
[423334825,1780062647000,-200.0,0.00024906,2]
[423334835,1780062647000,-20000.0,0.00025,2]
[423334826,1780062647000,-200.0,0.00024945,2]
[423334828,1780062647000,-253.06,0.00024959,2]
[423334833,1780062647000,-1647.47271075,0.00025,30]
[423334829,1780062647000,-150.0,0.00024959,2]
[423334830,1780062647000,-1138.10530309,0.00025,60]
[423334831,1780062647000,-2630.29506883,0.00025,30]
[423334832,1780062647000,-400.63324285,0.00025,60]
[423334837,1780062647000,-379112.02586341,0.00025,2]
[423334838,1780062647000,-1187.96874582,0.00025,2]
[423334839,1780062647000,-1491.09335718,0.00025,2]
[423334779,1780062647000,-838.0,0.00024,2]
[423334815,1780062647000,-200.0,0.00024801,2]
[423334813,1780062647000,-5000.0,0.00024736,2]
[423334840,1780062647000,-738.79598337,0.00025,2]
[423334807,1780062647000,-979.73,0.000247,7]
[423334786,1780062647000,-924.60877283,0.00024358,2]
[423334781,1780062647000,-3759.74472052,0.0002421,2]
[423334783,1780062647000,-2781.82699784,0.00024277,2]
[423334784,1780062647000,-10785.48752526,0.0002429,7]
[423334785,1780062647000,-7567.4,0.00024324,2]
[423334782,1780062647000,-7047.06542725,0.00024236,2]
[423334787,1780062647000,-436.88401428,0.00024358,2]
[423334789,1780062647000,-260.4103811,0.00024358,2]
[423334811,1780062647000,-5000.0,0.00024736,2]
[423334791,1780062647000,-1776.30922209,0.00024358,2]
[423334790,1780062647000,-260.4103811,0.00024358,2]
[423334788,1780062647000,-217.15233878,0.00024358,2]
[423334793,1780062647000,-288.71285617,0.00024358,2]
[423334794,1780062647000,-152.0,0.00024363,6]
[423334798,1780062647000,-745.62,0.00024658,6]
[423334797,1780062647000,-500.0,0.00024521,2]
[423334808,1780062647000,-5275.76938366,0.00024736,2]
[423334792,1780062647000,-200.0,0.00024358,2]
[423334806,1780062647000,-721.53,0.00024658,2]
[423334809,1780062647000,-5000.0,0.00024736,2]
[423334804,1780062647000,-150.0,0.00024658,2]
[423334810,1780062647000,-5000.0,0.00024736,2]
[423334805,1780062647000,-245.24118621,0.00024658,2]
[423334802,1780062647000,-301.16572257,0.00024658,2]
[423334803,1780062647000,-150.0,0.00024658,2]
[423334799,1780062647000,-959.03,0.00024658,2]
[423334800,1780062647000,-1000.0,0.00024658,2]
[423334796,1780062647000,-5531.0,0.000245,5]
[423334801,1780062647000,-592.24089798,0.00024658,2]
[423334885,1780062648000,-1138.71612284,0.00025848,5]
[423334884,1780062648000,-1139.56499543,0.00025848,5]
[423334883,1780062648000,-1011.96170145,0.00025848,5]
[423334879,1780062648000,-996.0,0.00025637,2]
[423334882,1780062648000,-188.6567787,0.00025785,2]
[423334872,1780062648000,-1910.18787185,0.00025454,2]
[423334881,1780062648000,-198.30684363,0.00025785,2]
[423334875,1780062648000,-592.24089798,0.00025571,2]
[423334874,1780062648000,-152.0,0.00025491,9]
[423334873,1780062648000,-200.0,0.00025454,2]
[423334876,1780062648000,-200.0,0.00025595,2]
[423334880,1780062648000,-500.0,0.00025666,14]
[423334890,1780062648000,-1011.00920474,0.00025848,5]
[423334877,1780062648000,-228.26385817,0.00025636,2]
[423334887,1780062648000,-1076.90881579,0.00025848,5]
[423334886,1780062648000,-1141.57173968,0.00025848,5]
[423334895,1780062648000,-1003.96590347,0.00025848,5]
[423334888,1780062648000,-1137.46392351,0.00025848,5]
[423334897,1780062648000,-1056.68798864,0.00025848,5]
[423334889,1780062648000,-1092.19498352,0.00025848,5]
[423334893,1780062648000,-1135.35297843,0.00025848,5]
[423334892,1780062648000,-1013.32700237,0.00025848,5]
[423334891,1780062648000,-1012.91527388,0.00025848,5]
[423334896,1780062648000,-1023.27289748,0.00025848,5]
[423334894,1780062648000,-1106.25629207,0.00025848,5]
[423334871,1780062648000,-153.27316643,0.00025454,2]
[423334878,1780062648000,-242.15646453,0.00025636,2]
[423334870,1780062648000,-233.5188934,0.00025454,2]
[423334856,1780062648000,-392.02,0.00025,2]
[423334868,1780062648000,-158.26884686,0.00025397,2]
[423334898,1780062648000,-1006.85000772,0.00025848,5]
[423334841,1780062648000,-2743.0,0.00025,2]
[423334847,1780062648000,-5499.83711925,0.00025,2]
[423334848,1780062648000,-200.0,0.00025,10]
[423334846,1780062648000,-923.26087713,0.00025,2]
[423334843,1780062648000,-344.0,0.00025,2]
[423334842,1780062648000,-2772.50753147,0.00025,2]
[423334844,1780062648000,-2558.0,0.00025,2]
[423334845,1780062648000,-434.0,0.00025,2]
[423334849,1780062648000,-842.0,0.00025,2]
[423334851,1780062648000,-392.02,0.00025,2]
[423334850,1780062648000,-392.02,0.00025,2]
[423334853,1780062648000,-392.02,0.00025,2]
[423334852,1780062648000,-392.02,0.00025,2]
[423334854,1780062648000,-392.02,0.00025,2]
[423334855,1780062648000,-392.02,0.00025,2]
[423334858,1780062648000,-392.02,0.00025,2]
[423334857,1780062648000,-392.02,0.00025,2]
[423334861,1780062648000,-996.0,0.00025082,2]
[423334859,1780062648000,-392.02,0.00025,2]
[423334860,1780062648000,-191.0317189,0.00025082,2]
[423334862,1780062648000,-300.0,0.000251,10]
[423334864,1780062648000,-717.97,0.00025115,30]
[423334863,1780062648000,-152.0,0.00025115,8]
[423334865,1780062648000,-721.53,0.00025115,30]
[423334867,1780062648000,-2991.49051684,0.00025373,2]
[423334866,1780062648000,-7357.34,0.00025368,7]
[423334869,1780062648000,-719.89917803,0.00025454,2]
[423334900,1780062648000,-1018.7367662,0.00025848,5]
[423334909,1780062648000,-300.0,0.00025881,10]
[423334902,1780062648000,-1112.38834845,0.00025848,5]
[423334928,1780062648000,-152.0,0.00026243,11]
[423334936,1780062648000,-200.0,0.00026388,2]
[423334943,1780062648000,-621.78829552,0.00026548,2]
[423334942,1780062648000,-592.24089798,0.00026484,2]
[423334941,1780062648000,-703.55,0.00026479,7]
[423334935,1780062648000,-3141.402971,0.00026384,2]
[423334946,1780062648000,-2054.15682156,0.0002655,2]
[423334940,1780062648000,-151.0,0.00026456,3]
[423334938,1780062648000,-343.36598036,0.00026397,2]
[423334945,1780062648000,-251.11897888,0.0002655,2]
[423334937,1780062648000,-158.26884686,0.00026397,2]
[423334944,1780062648000,-775.4783256,0.00026548,2]
[423334939,1780062648000,-7047.06542725,0.00026418,2]
[423334947,1780062648000,-200.0,0.0002655,2]
[423334950,1780062648000,-152.0,0.00026618,12]
[423334948,1780062648000,-229.0,0.0002661,2]
[423334949,1780062648000,-703.55,0.00026613,7]
[423334956,1780062648000,-1206.08,0.00026747,7]
[423334901,1780062648000,-1001.66902705,0.00025848,5]
[423334952,1780062648000,-151.0,0.00026666,2]
[423334951,1780062648000,-5664.52,0.00026666,14]
[423334957,1780062648000,-319.35,0.000268,7]
[423334953,1780062648000,-3226.0,0.000267,7]
[423334958,1780062648000,-1094.0377033,0.00026818,2]